Cogmind - Beta 15 *** ADVENTURER MODE // 2025.08.01 @ 18:53:02 Player: tcfire Result: Destroyed by L-31 Rogue with Katana Performance ------------- Evolutions (1) 500 Regions Visited (3) 600 Robots Destroyed (11) 55 Value Destroyed (315) 315 Prototype IDs (2) 40 Alien Tech Used (0) 0 Bonus (58) 58 TOTAL SCORE: 1568 Bonus ------- Follower Combat Kills 58 Cogmind --------- Core Integrity 0/400 Matter 233/300 Energy 100/100 System Corruption 3% Temperature Cool (0) Movement Core (50) Location -9/Storage Parts ------- > --- POWER (1) -------- (None) > --- PROPULSION (2) --- (None) > --- UTILITY (4) ------ (None) > --- WEAPON (2) ------- (None) > --- INVENTORY (5) ---- Improved Flight Unit Drone Bay (0/2) Drone Bay (0/2) Peak State ------------ > --- POWER ------------ Light Ion Engine > --- PROPULSION ------- Cooled Aerolev Unit > --- UTILITY ---------- Drone Bay Drone Bay Drone Bay Drone Bay > --- WEAPON ----------- (None) > --- INVENTORY -------- Improved Flight Unit Drone Bay Drone Bay [Rating: 28] Favorites ----------- Power Ion Engine Engine Ion Engine Propulsion Aluminum Leg Leg Aluminum Leg Hover Unit Cooled Aerolev Unit Flight Unit Improved Flight Unit Utility Small Storage Unit Device Drone Bay Storage Small Storage Unit Processor Signal Interpreter Weapon Medium Laser Energy Gun Medium Laser Launcher EMP Blaster Build | -11 -10 -9 -9 ------- Run | Yrd Mat Mat Sto Slots Evolved 2 | . . 2 . Power . | . . . . Propulsion . | . . . . Utility 2 | . . 2 . Weapon . | . . . . Parts Attached 22 | 6 1 5 10 Power 2 | 1 . 1 . Engine 2 | 1 . 1 . Core . | . . . . Reactor . | . . . . Propulsion 5 | 2 . . 3 Treads . | . . . . Leg 2 | 2 . . . Wheel . | . . . . Hover 1 | . . . 1 Flight 2 | . . . 2 Utility 8 | 1 . . 7 Device 6 | . . . 6 Storage 1 | 1 . . . Processor 1 | . . . 1 Hackware . | . . . . Protection . | . . . . Artifact . | . . . . Weapon 7 | 2 1 4 . Energy Gun 5 | 2 1 2 . Energy Cannon . | . . . . Ballistic Gun . | . . . . Ballistic Cannon . | . . . . Launcher 2 | . . 2 . Special Weapon . | . . . . Impact Weapon . | . . . . Slashing Weapon . | . . . . Piercing Weapon . | . . . . Special Melee Weapon . | . . . . Unidentified Prototypes 2 | . . . 2 Corrupted Parts 1 | . . 1 . System Corruption 3 | . . 3 . Parts Lost 6 | . . 5 1 Power 2 | . . 1 1 Propulsion 2 | . . 2 . Utility . | . . . . Weapon 2 | . . 2 . Highest Loss Streak 4 | . . 4 1 To Critical Strikes . | . . . . Average Backups 2 | 1 1 3 2 Power . | . 1 . . Propulsion . | . . . 1 Utility . | . . 1 1 Weapon . | . . 1 . Tool/Special . | . . . . Unused Backups 3 | . . . 3 Power . | . . . . Propulsion 2 | . . . 2 Utility . | . . . . Weapon 1 | . . . 1 Tool/Special . | . . . . Average Slot Usage (%) 60 | . 85 60 44 Engine 10 | . 14 10 10 Leg 15 | . 28 19 . Hover 2 | . . . 7 Device 4 | . . . 14 Storage 9 | . 14 11 4 Processor 1 | . . . 4 Energy Gun 13 | . 28 14 . Launcher 2 | . . 5 . Peak Build Rating 28 | 6 6 7 28 Average Rating 7 | 4 6 5 14 On Entrance 3 | . 6 6 2 Naked Turns 2 | . . . 2 Heaviest Build 27 | 13 14 16 27 Greatest Support 20 | 20 20 20 13 Greatest Overweight (x) 4 | 4 . 2 2 Average Overweight (x) . | . . . . Largest Inventory Capacity 8 | 8 8 8 8 Average Capacity 7 | 7 8 8 6 Most Carried 6 | 5 3 6 5 Average Carried 2 | 1 1 3 2 Final Capacity 8 | 8 8 8 5 Final Carried 3 | 1 2 3 3 Class Distribution -------------------- 100% | Mutant Dominant Class ---------------- Mutant | -10/Materials Mutant | -9/Materials Mutant | -9/Storage Resources | -11 -10 -9 -9 ----------- Run | Yrd Mat Mat Sto Matter Collected 360 | 176 . 179 5 Remotely . | . . . . Salvage Created 484 | . 37 447 . Parts 30 | . 1 29 . Haulers Intercepted . | . . . . Recyclers Shooed . | . . . . Parts Field Recycled . | . . . . Retrieved Matter . | . . . . Parts Self-Destructed . | . . . . Prevented . | . . . . Kills | -11 -10 -9 -9 ------- Run | Yrd Mat Mat Sto Combat Hostiles Destroyed 9 | . 1 8 . Guns 5 | . 1 4 . AOE 3 | . . 3 . Classes Destroyed 5 | . 1 4 . Builder 1 | . . 1 . Recycler 1 | . . 1 . Swarmer 1 | . . 1 . Grunt 6 | . 1 5 . Sentry 2 | . . 2 . Best Kill Streak 4 | . 1 4 . Combat Bots Only 3 | . 1 3 . Max Kills in Single Turn 2 | . 1 2 . Gunslinging . | . . . . Exploded 1 | . . 1 . Melee . | . . . . Uniques/NPCs Destroyed . | . . . . Combat | -11 -10 -9 -9 -------- Run | Yrd Mat Mat Sto Hostile Shots Fired 150 | . 14 100 36 Missed 35 | . 1 22 12 Hits 115 | . 13 78 24 Melee 3 | . . . 3 Projectile 112 | . 13 78 21 Critical Strikes 2 | . . . 2 Damage Taken 1148 | . 108 721 319 Core 430 | . 16 196 218 Absorbed by Shields . | . . . . Ignored by Resistances 343 | . 34 226 83 Core Remaining (%) 96 | 100 93 . . Volleys Fired 43 | . 3 40 . Largest 2 | . 2 2 . Hottest 90 | . 90 90 . Shots Fired 63 | . 6 57 . Gun 51 | . 6 45 . Cannon . | . . . . Launcher 12 | . . 12 . Special . | . . . . Kinetic . | . . . . Thermal 42 | . 3 39 . Explosive . | . . . . Electromagnetic 21 | . 3 18 . Robot Hit Streak 11 | . 6 11 . Robot Miss Streak 8 | . . 8 . Penetration Max . | . . . . Secondary Targets . | . . . . Shots Hit Robots 43 | . 6 37 . Core Hits 22 | . 2 18 2 Critical Kills . | . . . . Critical Parts Destroyed . | . . . . Critical Strikes 2 | . . 2 . Burn 2 | . . 2 . Melee Attacks . | . . . . Impact . | . . . . Slashing . | . . . . Piercing . | . . . . Sneak Attacks . | . . . . Combat Hostiles . | . . . . Follow-up Attacks . | . . . . Damage Inflicted 962 | . 77 847 38 Guns 458 | . 77 381 . Cannons . | . . . . Explosions 451 | . . 451 . Melee . | . . . . Ramming 53 | . . 15 38 Kinetic . | . . . . Thermal 383 | . 37 346 . Explosive . | . . . . Electromagnetic 526 | . 40 486 . Impact . | . . . . Slashing . | . . . . Piercing . | . . . . Highest Corruption 3 | . . 3 3 Average Corruption 3 | . . 3 3 Corruption Purged . | . . . . Corruption Blocked . | . . . . Effects 5 | . . 2 3 Message Errors 1 | . . 1 . Heat Flow Errors 2 | . . . 2 Parts Rejected 1 | . . 1 . Data Loss (minor) 1 | . . . 1 Overload Shots . | . . . . Overflow Damage . | . . . . Projectiles . | . . . . Explosions . | . . . . Melee . | . . . . Knockbacks . | . . . . Impact . | . . . . Kinetic . | . . . . Secondary . | . . . . Self-Inflicted Damage 57 | . . 40 17 Shots 5 | . . 5 . Rammed 7 | . . . 7 Targets Rammed 11 | . . 4 7 Kicked 4 | . . 4 . Crushed . | . . . . Highest Temperature 207 | . 168 81 207 Average Temperature 49 | . 96 36 96 Received Heat Transfer 546 | . 78 354 114 Siege Activations . | . . . . Martial Activations . | . . . . Shielding Activations . | . . . . Robots Disrupted . | . . . . Combat Hostiles . | . . . . Robots Corrupted 1 | . . 1 . Combat Hostiles 1 | . . 1 . Parts Fried . | . . . . Impact Corruptions . | . . . . Robots Melted . | . . . . Combat Hostiles . | . . . . Parts Melted 1 | . 1 . . Heat Transferred 1176 | . 111 1065 . Parts Sabotaged . | . . . . Parts Stolen . | . . . . Parts Stripped . | . . . . Power Chain Reactions 1 | . . 1 . Alert | -11 -10 -9 -9 ------- Run | Yrd Mat Mat Sto Maximum Alert Level 1 | . . 1 . Low Security (%) 90 | 100 100 80 100 Level 1 9 | . . 19 . Level 2 . | . . . . Level 3 . | . . . . Level 4 . | . . . . Level 5 . | . . . . High Security . | . . . . Max Security . | . . . . Peak Influence 270 | . 20 270 105 Initial 90 | . . 7 90 Average 44 | . . 68 48 Influence Increases 605 | . 30 410 165 Destroy 0b10 Robot/C 220 | . 20 160 40 Destroy 0b10 Robot/NC 10 | . . 10 . Destroy Leader 60 | . 10 40 10 Allied During Kill 3 | . . . 3 Successful Hack 7 | . . . 7 Destroy Structure 5 | . . 5 . Lose Combat Pursuer 300 | . . 195 105 Influence Decreases 535 | . 10 180 345 Entered New Map 173 | . . 13 160 Time Decay 197 | . 10 117 70 Lost Part 60 | . . 50 10 Lost Ally 105 | . . . 105 Squads Dispatched 8 | . 1 3 4 Investigation 4 | . 1 2 1 Extermination . | . . . . Reinforcement 2 | . . 1 1 Assault 2 | . . . 2 Garrison . | . . . . Intercept . | . . . . Searches Triggered . | . . . . Construction Impeded . | . . . . Haulers Reinforced . | . . . . Active Scanning Responses . | . . . . Cargo Convoy Interrupts . | . . . . Stealth | -11 -10 -9 -9 --------- Run | Yrd Mat Mat Sto Distress Signals 4 | . . 2 2 Communications Jammed . | . . . . Distress Signals . | . . . . Times Spotted 43 | . 3 23 17 Peak Tracking Total 12 | . 3 10 12 Tactical Retreats 7 | . . 5 2 Traps | -11 -10 -9 -9 ------- Run | Yrd Mat Mat Sto Traps Triggered 1 | . . . 1 Indirectly . | . . . . Trap Hack Attempts . | . . . . Triggered . | . . . . Disarmed . | . . . . Reprogrammed . | . . . . Reused . | . . . . Traps Extracted . | . . . . Installed . | . . . . Triggered . | . . . . Machines | -11 -10 -9 -9 ---------- Run | Yrd Mat Mat Sto Machines Disabled . | . . . . Max in Single Turn . | . . . . Machines Repaired . | . . . . Machines Dismantled . | . . . . Machines Sabotaged . | . . . . Overloaded Fab Kills . | . . . . Hacking | -11 -10 -9 -9 --------- Run | Yrd Mat Mat Sto Machines Accessed 3 | . . . 3 Terminals 3 | . . . 3 Fabricators . | . . . . Repair Stations . | . . . . Recycling Units . | . . . . Scanalyzers . | . . . . Garrison Access . | . . . . Total Hacks 5 | . . . 5 Successful 2 | . . . 2 Failed 3 | . . . 3 Catastrophic 1 | . . . 1 Database Lockouts . | . . . . Manual 1 | . . . 1 Terminals 5 | . . . 5 Fabricators . | . . . . Repair Stations . | . . . . Recycling Units . | . . . . Scanalyzers . | . . . . Garrison Access . | . . . . Terminal Hacks 2 | . . . 2 Open Door 2 | . . . 2 Fabricator Hacks . | . . . . Repair Station Hacks . | . . . . Recycling Unit Hacks . | . . . . Scanalyzer . | . . . . Garrison Access Hacks . | . . . . Unauthorized Hacks . | . . . . Terminals . | . . . . Fabricators . | . . . . Repair Stations . | . . . . Recycling Units . | . . . . Scanalyzers . | . . . . Garrison Access . | . . . . Data Cores Recovered . | . . . . Used . | . . . . Hacking Detections 2 | . . . 2 Full Trace Events 1 | . . . 1 Feedback Events . | . . . . Feedback Blocked . | . . . . Robot Schematics Acquired . | . . . . Robots Built . | . . . . Authchips . | . . . . Time . | . . . . Total Robot Build Rating . | . . . . Part Schematics Acquired . | . . . . Parts Built . | . . . . Authchips . | . . . . Time . | . . . . Total Part Build Rating . | . . . . Parts Repaired . | . . . . Time . | . . . . Parts Recycled . | . . . . Recycled Matter . | . . . . Retrieved Matter . | . . . . Retrieved Components . | . . . . Parts Scanalyzed . | . . . . Part Schematics Acquired . | . . . . Parts Damaged . | . . . . Bothacking | -11 -10 -9 -9 ------------ Run | Yrd Mat Mat Sto Used RIF Installer . | . . . . Robots Hacked . | . . . . Non-combat . | . . . . Combat . | . . . . Robot Hacks Applied . | . . . . Relay Couplers Released . | . . . . Fabnet Peak Effective % . | . . . . Robots Rewired . | . . . . Allies Hacked . | . . . . Hacks Repelled . | . . . . Allies | -11 -10 -9 -9 -------- Run | Yrd Mat Mat Sto Total Allies 2 | . . . 2 Largest Group 2 | . . . 2 Highest-Rated Group 62 | . . . 62 Highest-Rated Ally 31 | . . . 31 Total Orders . | . . . . Ally Attacks 11 | . . . 11 Total Damage 211 | . . . 211 Kills 2 | . . . 2 Allies Corrupted . | . . . . Allies Melted . | . . . . Intel | -11 -10 -9 -9 ------- Run | Yrd Mat Mat Sto Active Infowar (turns) . | . . . . Robot Analysis Total . | . . . . Derelict Logs Recovered . | . . . . Drone Launches 24 | . . . 24 Drone Recoveries 13 | . . . 13 Exploration | -11 -10 -9 -9 ------------- Run | Yrd Mat Mat Sto Turns Passed 824 | 66 162 387 209 Spaces Moved 587 | 51 125 216 195 Core 41 | 22 . 2 17 Treads . | . . . . Legs 368 | 29 125 214 . Wheels . | . . . . Hover 156 | . . . 156 Flight 22 | . . . 22 Fastest Speed 37 | 50 120 120 37 Average Speed 102 | 105 120 124 67 Slowest Speed 250 | 250 120 190 150 Overloaded Moves 156 | . . . 156 Propulsion Burnouts . | . . . . Robots Hopped . | . . . . Potential Cave-ins . | . . . . Cave-ins Triggered . | . . . . Exploration Rate (%) 21 | 4 30 17 36 Regions Visited 3 Branch Regions 1 Pre-discovered Areas . | . . . . Known Exits Taken . | . . . . Unknown Exits Taken 3 | 1 1 1 . Scrap Searched . | . . . . Spaces Dug . | . . . . Terrain Destroyed 5 | . . 5 . Melee . | . . . . Projectile . | . . . . AOE 5 | . . 5 . Terrain Rammed . | . . . . Walls Destroyed . | . . . . Machines Disabled . | . . . . Actions | -11 -10 -9 -9 --------- Run | Yrd Mat Mat Sto Total 750 | 63 131 277 279 Wait 26 | . . 2 24 Move 584 | 50 124 215 195 Hop . | . . . . Pick Up 27 | 7 2 6 12 Fast Attach . | . . . . Attach 18 | 6 . 5 7 Detach 2 | . . 1 1 Swap 5 | . 1 1 3 Drop 16 | . 1 3 12 Fire 43 | . 3 40 . Melee . | . . . . Ram 7 | . . . 7 Kick 4 | . . 4 . Crush . | . . . . Escape Stasis 18 | . . . 18 Rewire . | . . . . Trap . | . . . . Miscellaneous . | . . . . Route ------- -11/Scrapyard -10/Materials (discovered 2 exits: [*Mat] / [*Min]) -9/Materials -9/Storage History --------- Turn | Location | Event 40 | -11/Scrapyard | Discovered new exit (range 16) 67 | -11/Scrapyard | Entered Materials 68 | -10/Materials | Met a group of wandering Federalists 159 | -10/Materials | Discovered new exit (range 7) 203 | -10/Materials | Discovered new exit (range 9) 229 | -10/Materials | Entered another Materials area 229 | -9/Materials | Evolved 2 slots: Utility x2 312 | -9/Materials | Build established: Mutant 594 | -9/Materials | Lost 4 parts (1p1n2w) 600 | -9/Materials | Discovered new exit (range 11) 616 | -9/Materials | Entered Storage 625 | -9/Storage | Met a pair of Derelict thieves 802 | -9/Storage | Core integrity fell below 50% 805 | -9/Storage | Lost 12 allies 824 | -9/Storage | Core integrity fell below 20% 825 | -9/Storage | Destroyed by L-31 Rogue with Katana Last Messages --------------- 00768_ Drone released from Drone Bay. 00773_ Drone retrieved by Drone Bay (no repairs). 00774_ Drone destroyed. 00775_ K-01 Serf collects debris. 00775_ M-13 Machinist repairs L-31 Rogue. 00779_ Dropped Drone Bay. 00780_ K-01 Serf destroyed. 00780_ Dropped Drone Bay. 00782_ K-01 Serf collects debris. 00788_ System corrupted: Component data lost. 00807_ Lgt. Ion Engine destroyed. 00811_ Connecting with Door Terminal... 00811_ ALERT: Suspicious activity at Terminal S008. Dispatching Investigation squad. 00816_ R-06 Scavenger inserts Beamcaster into recycling unit. 00818_ Slammed into Y-45 Defender. 00822_ Slammed into L-31 Rogue. 00823_ Cld. Aerolev Unit severed. 00824_ Slammed into L-31 Rogue. Map ----- +----------------------------------------------------+ | | | | | | | | | | | | | | | | | ?????????????????????????????????????????????????? | | ?????????????????????????????????????????????????? | | ?????????????????????????????????????????????????? | | ??????????????#######????????????????????????????? | | ??????????????# ##???????????????????????????? | | ??????????????# ????????????????????????????? | | ??????????????# ????????????????????????????? | | ??????????????# ?????????????????????????????? | | ??????????????? ?????????????????????????????? | | ???????????????# ############??????????????????? | | ??????##"??????# # #??????????????????? | | ?????? ????# # #???????????????????? | | ???????"""" ??# # """ """ #???????????????????? | | ???????"""" # # """ """ #???????????????????? | | ???????"""" + gr""" """ #???????????????????? | | ???????"""" # # """ """ #???????????????????? | | ?????# ??# #g"""g""" #???????????????????? | | ?????# ????# # l@ #?????#"""##????????? | | ?????# ??????# ######l####?????# T#????????? | | ?????##????????# #????#=#????????# ##????????? | | ???????????????# #???##Y##########+###?????????? | | ???????????????# #???# Y #???????????? | | ???????????????# #???# #???????????? | | ???????????????#+#+##### #???????????? | | ???????????????# # #####/#####???????????? | | ???????????????# # #?? ??????????????? | | ???????????????# # # ""#????????????? | | ???????????????# # # Y"#????????????? | | ???????????????+ # # ""#????????????? | | ???????????????# # # #????????????? | | ???????????????# # # """ #????????????? | | ???????????????# ##### """ #????????????? | | ???????????????# #???# """ #????????????? | | ???????????????+ #??? ??? #????????????? | | ???????????????# #???####???###????????????? | | ???????????????####/########?????????????????????? | | ?????????????????#!!! ??????????????? | | ?????????????????# ! #######?????????????????????? | | ?????????????????#= #???????????????????????????? | | ?????????????????#%* #???????????????????????????? | | ???????????#?? + % #???????????????????????????? | | ???????????# """ # #???????????????????????????? | +----------------------------------------------------+ Best States ------------- Heat Dissipation 28 Energy Generation 10 Energy Capacity 250 Matter Stores 300 Matter Capacity 300 Sight Range 16 Terrain Scan Density 10 Resistance: KI 20 Resistance: TH 20 Resistance: EX 20 Resistance: EM 20 Resistance: I 20 Resistance: S 20 Resistance: P 20 Evasion (%) 55 Offensive Hacking 10 Item Schematics ----------------- None Robot Schematics ------------------ None Fabricated ------------ Nothing Repaired ---------- Nothing Alien Tech Used ----------------- None Achievements -------------- None Challenges ------------ None Game ------ Seed PhysicsAblativeScreen Manual? 0 Play Time 00:11:57 Cumulative 37.6 hours Start 2025.08.01 @ 18:44:28 End 2025.08.01 @ 18:53:02 Sessions 1 Manual Loads 0 Difficulty Adventurer Special Mode None Game No. 55 Rogue 0 Adventurer 21 Explorer 34 Win Type - Total 1 Types 1/0/0/0/0/0/0/0/0/0 Lore% 17 Gallery% 42 Achievement% 42 Wizard Run 0 Options --------- Layout 1 ASCII 0 Keyboard 0 Movement Arrows Keybinds 0 Fullscreen 1 Font 42/SmallcapsGlow Map View 52x41 Zoom Use 0% Tactical HUD 1 Map Filters NONE Filters NONE Steam 1 RUN: 6441518e-054c-4f5d-bd83-b590c26e1875